fUSD/lending_fUSD_20250101
["ID","MTS","AMOUNT","RATE_DAILY","PERIOD"]
[347371178,1735740632704,-265.357,0.00010858,2]
[347371179,1735740632714,-10369.95002665,0.00010858,2]
[347371180,1735740632727,-456.16000023,0.00010858,2]
[347371181,1735740632739,-694.90707312,0.00010858,2]
[347371182,1735740632748,-390.51631188,0.00010858,2]
[347371183,1735740632759,-317.81798812,0.00010858,2]
[347371184,1735740632768,-22.18202788,0.00010858,2]
[347371186,1735740632806,-4977.81797212,0.00010858,2]
[347371188,1735740632815,-1000.0,0.00010858,2]
[347371190,1735740632824,-1848.33839,0.0001089,2]
[347371192,1735740632833,-778.2019,0.000109,2]
[347371194,1735740632842,-158.09734621,0.000109,2]
[347371196,1735740632851,-158.0973462,0.000109,2]
[347371198,1735740632861,-944.869,0.0001093,2]
[347371199,1735740632870,-1372.64713587,0.00010953,2]
[347371201,1735740632881,-369.08286413,0.00010953,2]
[347371202,1735740632890,-1418.34514854,0.00010958,2]
[347371203,1735740632911,-762.74485146,0.00010958,2]
[347371204,1735740632920,-150.0,0.00010958,2]
[347371205,1735740632929,-17.06402854,0.00010958,2]
[347371206,1735740632941,-613.64375269,0.00010958,2]
[347371207,1735740632950,-500.0,0.00010958,2]
[347371208,1735740632959,-500.0,0.00010958,2]
[347371209,1735740632968,-1009.24,0.00010958,2]
[347371210,1735740632977,-1630.35,0.00010958,2]
[347371211,1735740632986,-2626.18,0.00010958,2]
[347371212,1735740632999,-3712.62,0.00010958,2]
[347371213,1735740633008,-1977.71,0.00010958,2]
[347371214,1735740633018,-500.0,0.00010958,2]
[347371215,1735740633028,-1878.57,0.00010958,2]
[347371216,1735740633038,-3488.674578,0.00010958,2]
[347371217,1735740633048,-1227.49,0.00010958,2]
[347371218,1735740633058,-500.0,0.00010958,2]
[347371219,1735740633068,-1083.51,0.00010958,2]
[347371220,1735740633078,-473.03726029,0.00010958,2]
[347371221,1735740633089,-500.0,0.00010958,2]
[347371222,1735740633101,-2475.666831,0.00010958,2]
[347371223,1735740633110,-500.0,0.00010958,2]
[347371224,1735740633120,-500.0,0.00010958,2]
[347371225,1735740633130,-844.48,0.00010958,2]
[347371226,1735740633139,-535.37,0.00010958,2]
[347371227,1735740633148,-500.0,0.00010958,2]
[347371228,1735740633157,-68.07542599,0.00010958,2]
[347371229,1735740633192,-431.92457401,0.00010958,2]
[347371230,1735740633201,-500.0,0.00010958,2]
[347371231,1735740633211,-438.32845679,0.00010958,2]
[347371232,1735740633220,-500.0,0.00010958,2]
[347371233,1735740633229,-1713.02,0.00010958,2]
[347371234,1735740633239,-532.43,0.00010958,2]
[347371235,1735740633248,-500.0,0.00010958,2]
[347371236,1735740633258,-500.0,0.00010958,2]
[347371237,1735740633267,-500.0,0.00010958,2]
[347371238,1735740633276,-500.0,0.00010958,2]
[347371239,1735740633286,-500.0,0.00010958,2]
[347371240,1735740633295,-764.72,0.00010958,2]
[347371241,1735740633304,-500.0,0.00010958,2]
[347371242,1735740633314,-1364.77,0.00010958,2]
[347371243,1735740633323,-543.26,0.00010958,2]
[347371244,1735740633332,-513.9559594,0.00010958,2]
[347371245,1735740633341,-1364.76,0.00010958,2]
[347371246,1735740633351,-422.30283599,0.00010958,2]
[347371247,1735740633360,-570.54,0.00010958,2]
[347371248,1735740633370,-500.0,0.00010958,2]
[347371249,1735740633379,-500.0,0.00010958,2]
[347371250,1735740633388,-620.49,0.00010958,2]
[347371251,1735740633398,-500.0,0.00010958,2]
[347371252,1735740633407,-588.52,0.00010958,2]
[347371253,1735740633417,-518.32,0.00010958,2]
[347371254,1735740633427,-1733.97,0.00010958,2]
[347371255,1735740633438,-1093.81,0.00010958,2]
[347371256,1735740633447,-500.0,0.00010958,2]
[347371257,1735740633456,-505.5394161,0.00010958,2]
[347371258,1735740633466,-500.0,0.00010958,2]
[347371259,1735740633476,-948.28,0.00010958,2]
[347371260,1735740633485,-10535.94,0.00010958,2]
[347371261,1735740633497,-500.0,0.00010958,2]
[347371262,1735740633506,-500.0,0.00010958,2]
[347371263,1735740633516,-500.0,0.00010958,2]
[347371264,1735740633526,-1568.92,0.00010958,2]
[347371265,1735740633536,-1511.35,0.00010958,2]
[347371266,1735740633545,-500.0,0.00010958,2]
[347371267,1735740633555,-727.65,0.00010958,2]
[347371268,1735740633564,-723.06,0.00010958,2]
[347371269,1735740633574,-500.0,0.00010958,2]
[347371270,1735740633584,-500.0,0.00010958,2]
[347371271,1735740633594,-500.0,0.00010958,2]
[347371272,1735740633604,-500.0,0.00010958,2]
[347371273,1735740633613,-602.27,0.00010958,2]
[347371274,1735740633623,-500.0,0.00010958,2]
[347371275,1735740633632,-1542.84,0.00010958,2]
[347371276,1735740633641,-500.0,0.00010958,2]
[347371277,1735740633651,-500.0,0.00010958,2]
[347371278,1735740633660,-1348.53,0.00010958,2]
[347371279,1735740633670,-544.13,0.00010958,2]
[347371280,1735740633679,-500.0,0.00010958,2]
[347371281,1735740633688,-500.0,0.00010958,2]
[347371282,1735740633697,-500.0,0.00010958,2]
[347371283,1735740633707,-900.78,0.00010958,2]
[347371284,1735740633716,-500.0,0.00010958,2]
[347371285,1735740633725,-500.0,0.00010958,2]
[347371286,1735740633735,-516.97,0.00010958,2]
[347371287,1735740633745,-500.0,0.00010958,2]
[347371288,1735740633755,-500.0,0.00010958,2]
[347371289,1735740633765,-697.76,0.00010958,2]
[347371290,1735740633779,-500.0,0.00010958,2]
[347371291,1735740633796,-1166.8,0.00010958,2]
[347371292,1735740633808,-600.52,0.00010958,2]
[347371293,1735740633821,-500.0,0.00010958,2]
[347371294,1735740633830,-500.0,0.00010958,2]
[347371295,1735740633840,-500.0,0.00010958,2]
[347371296,1735740633850,-500.0,0.00010958,2]
[347371297,1735740633859,-1109.99,0.00010958,2]
[347371298,1735740633868,-1265.15,0.00010958,2]
[347371299,1735740633878,-728.9,0.00010958,2]
[347371300,1735740633887,-500.0,0.00010958,2]
[347371301,1735740633897,-500.0,0.00010958,2]
[347371302,1735740633906,-500.0,0.00010958,2]
[347371303,1735740633915,-860.01,0.00010958,2]
[347371304,1735740633925,-500.0,0.00010958,2]
[347371305,1735740633934,-410.24630544,0.00010958,2]
[347371309,1735740638337,-89.75369456,0.00010958,2]
[347371310,1735740638347,-268.58115708,0.00010958,2]
[347371311,1735740638358,-711.01884292,0.00010958,2]
[347371312,1735740638367,-610.85,0.00010958,2]
[347371313,1735740638376,-473.8675332,0.00010958,2]
[347371314,1735740638388,-26.1324668,0.00010958,2]
[347371315,1735740638399,-1286.36,0.00010958,2]
[347371316,1735740638408,-830.85,0.00010958,2]
[347371317,1735740638417,-1172.85,0.00010958,2]
[347371318,1735740638426,-903.68,0.00010958,2]
[347371319,1735740638436,-528.68,0.00010958,2]
[347371320,1735740638446,-212.03160927,0.00010958,2]
[347371321,1735740638474,-327.7410864,0.00010958,2]
[347371322,1735740638579,-273.36730433,0.00010958,2]
[347371323,1735740638589,-500.0,0.00010958,2]
[347371324,1735740638598,-623.16,0.00010958,2]
[347371325,1735740638608,-1151.2,0.00010958,2]
[347371326,1735740638617,-715.16,0.00010958,2]
[347371327,1735740638626,-500.0,0.00010958,2]
[347371328,1735740638635,-500.0,0.00010958,2]
[347371329,1735740638644,-500.0,0.00010958,2]
[347371330,1735740638654,-500.0,0.00010958,2]
[347371331,1735740638663,-1268.86,0.00010958,2]
[347371332,1735740638672,-738.72,0.00010958,2]
[347371333,1735740638681,-649.03,0.00010958,2]
[347371334,1735740638691,-500.0,0.00010958,2]
[347371335,1735740638700,-556.10155635,0.00010958,2]
[347371336,1735740638709,-500.0,0.00010958,2]
[347371337,1735740638718,-899.81,0.00010958,2]
[347371338,1735740638727,-874.78,0.00010958,2]
[347371339,1735740638736,-500.0,0.00010958,2]
[347371340,1735740638746,-1731.45,0.00010958,2]
[347371341,1735740638755,-1524.88,0.00010958,2]
[347371343,1735740638764,-500.0,0.00010958,2]
[347371345,1735740638773,-500.0,0.00010958,2]
[347371347,1735740638782,-2239.45,0.00010958,2]
[347371349,1735740638791,-500.0,0.00010958,2]
[347371350,1735740638800,-500.0,0.00010958,2]
[347371351,1735740638809,-838.95,0.00010958,2]
[347371352,1735740638818,-1153.33,0.00010958,2]
[347371353,1735740638828,-576.85,0.00010958,2]
[347371354,1735740638837,-782.39,0.00010958,2]
[347371355,1735740638846,-8032.38,0.00010958,2]
[347371356,1735740638855,-520.38,0.00010958,2]
[347371357,1735740638864,-993.65,0.00010958,2]
[347371358,1735740638873,-770.5,0.00010958,2]
[347371359,1735740638882,-500.0,0.00010958,2]
[347371360,1735740638891,-500.0,0.00010958,2]
[347371361,1735740638901,-500.0,0.00010958,2]
[347371362,1735740638910,-674.7,0.00010958,2]
[347371363,1735740638919,-3337.5,0.00010958,2]
[347371364,1735740638928,-500.0,0.00010958,2]
[347371365,1735740638937,-500.0,0.00010958,2]
[347371366,1735740638946,-500.0,0.00010958,2]
[347371367,1735740638955,-500.0,0.00010958,2]
[347371368,1735740638963,-500.0,0.00010958,2]
[347371369,1735740638973,-917.32,0.00010958,2]
[347371370,1735740638982,-910.67,0.00010958,2]
[347371371,1735740638990,-765.56,0.00010958,2]
[347371372,1735740639003,-3362.69,0.00010958,2]
[347371373,1735740639012,-764.33,0.00010958,2]
[347371374,1735740639021,-635.04,0.00010958,2]
[347371375,1735740639030,-500.0,0.00010958,2]
[347371376,1735740639039,-500.0,0.00010958,2]
[347371377,1735740639049,-1703.73,0.00010958,2]
[347371378,1735740639057,-500.0,0.00010958,2]
[347371379,1735740639067,-500.0,0.00010958,2]
[347371380,1735740639076,-1455.99,0.00010958,2]
[347371381,1735740639086,-500.0,0.00010958,2]
[347371382,1735740639098,-1251.57,0.00010958,2]
[347371383,1735740639107,-500.0,0.00010958,2]
[347371384,1735740639116,-500.0,0.00010958,2]
[347371385,1735740639125,-500.0,0.00010958,2]
[347371386,1735740639134,-2718.43,0.00010958,2]
[347371387,1735740639144,-500.0,0.00010958,2]
[347371388,1735740639153,-500.0,0.00010958,2]
[347371389,1735740639162,-1855.53,0.00010958,2]
[347371390,1735740639171,-561.14,0.00010958,2]
[347371391,1735740639180,-500.0,0.00010958,2]
[347371392,1735740639189,-641.16,0.00010958,2]
[347371393,1735740639199,-500.0,0.00010958,2]
[347371394,1735740639208,-722.62,0.00010958,2]
[347371395,1735740639217,-500.0,0.00010958,2]
[347371396,1735740639226,-500.0,0.00010958,2]
[347371397,1735740639235,-2853.68,0.00010958,2]
[347371398,1735740639245,-500.0,0.00010958,2]
[347371399,1735740639255,-1963.17,0.00010958,2]
[347371400,1735740639265,-500.0,0.00010958,2]
[347371401,1735740639274,-500.0,0.00010958,2]
[347371402,1735740639283,-500.0,0.00010958,2]
[347371403,1735740639292,-1100.4,0.00010958,2]
[347371404,1735740639302,-738.29,0.00010958,2]
[347371405,1735740639311,-500.0,0.00010958,2]
[347371406,1735740639320,-500.0,0.00010958,2]
[347371407,1735740639329,-500.0,0.00010958,2]
[347371408,1735740639339,-500.0,0.00010958,2]
[347371409,1735740639349,-1351.16,0.00010958,2]
[347371410,1735740639358,-535.87,0.00010958,2]
[347371411,1735740639367,-2034.92,0.00010958,2]
[347371412,1735740639376,-1596.79,0.00010958,2]
[347371413,1735740639385,-1189.8,0.00010958,2]
[347371414,1735740639394,-500.0,0.00010958,2]
[347371415,1735740639403,-500.0,0.00010958,2]
[347371416,1735740639412,-500.0,0.00010958,2]
[347371417,1735740639421,-500.0,0.00010958,2]
[347371418,1735740639430,-500.0,0.00010958,2]
[347371419,1735740639440,-860.45,0.00010958,2]
[347371420,1735740639449,-500.0,0.00010958,2]
[347371421,1735740639459,-892.64,0.00010958,2]
[347371422,1735740639468,-500.0,0.00010958,2]
[347371423,1735740639477,-500.0,0.00010958,2]
[347371424,1735740639486,-500.0,0.00010958,2]
[347371425,1735740639496,-1378.9,0.00010958,2]
[347371426,1735740639505,-1521.2,0.00010958,2]
[347371427,1735740639514,-500.0,0.00010958,2]
[347371428,1735740639524,-500.0,0.00010958,2]
[347371429,1735740639533,-500.0,0.00010958,2]
[347371430,1735740639543,-1086.23,0.00010958,2]
[347371431,1735740639554,-500.0,0.00010958,2]
[347371432,1735740639564,-855.64,0.00010958,2]
[347371433,1735740639573,-1858.38,0.00010958,2]
[347371434,1735740639583,-532.0,0.00010958,2]
[347371435,1735740639591,-727.74,0.00010958,2]
[347371436,1735740639601,-545.12,0.00010958,2]
[347371437,1735740639610,-2544.01,0.00010958,2]
[347371438,1735740639619,-1226.2,0.00010958,2]
[347371439,1735740639628,-885.6,0.00010958,2]
[347371440,1735740639637,-1096.66,0.00010958,2]
[347371441,1735740639647,-1669.93,0.00010958,2]
[347371442,1735740639656,-500.0,0.00010958,2]
[347371443,1735740639665,-590.13,0.00010958,2]
[347371444,1735740639675,-1599.92,0.00010958,2]
[347371445,1735740639684,-2032.13,0.00010958,2]
[347371446,1735740639693,-838.37,0.00010958,2]
[347371447,1735740639702,-1191.59,0.00010958,2]
[347371448,1735740639712,-1317.7,0.00010958,2]
[347371449,1735740639721,-500.0,0.00010958,2]
[347371450,1735740639730,-1700.79,0.00010958,2]
[347371451,1735740639739,-1043.91,0.00010958,2]
[347371452,1735740639750,-500.0,0.00010958,2]
[347371453,1735740639759,-1972.23,0.00010958,2]
[347371454,1735740639770,-500.0,0.00010958,2]
[347371455,1735740639779,-573.16,0.00010958,2]
[347371456,1735740639787,-783.08,0.00010958,2]
[347371457,1735740639796,-500.0,0.00010958,2]
[347371458,1735740639806,-500.0,0.00010958,2]
[347371459,1735740639815,-1069.4,0.00010958,2]
[347371460,1735740639824,-500.0,0.00010958,2]
[347371461,1735740639833,-1178.64,0.00010958,2]
[347371462,1735740639843,-500.0,0.00010958,2]
[347371463,1735740639852,-1907.98,0.00010958,2]
[347371464,1735740639862,-500.0,0.00010958,2]
[347371465,1735740639871,-1761.78,0.00010958,2]
[347371466,1735740639880,-543.67,0.00010958,2]
[347371467,1735740639889,-1792.42,0.00010958,2]
[347371468,1735740639898,-639.53,0.00010958,2]
[347371469,1735740639908,-1524.35,0.00010958,2]
[347371470,1735740640192,-1264.22,0.00010958,2]
[347371471,1735740640202,-1800.41,0.00010958,2]
[347371472,1735740640211,-678.24,0.00010958,2]
[347371474,1735740640220,-500.0,0.00010958,2]
[347371476,1735740640230,-239.57452358,0.00010958,2]
[347371478,1735740640239,-1021.65,0.00010958,2]
[347371479,1735740640250,-500.0,0.00010958,2]
[347371480,1735740640260,-1201.04,0.00010958,2]
[347371481,1735740640269,-1568.53,0.00010958,2]
[347371482,1735740640279,-1310.58,0.00010958,2]
[347371483,1735740640288,-628.40695742,0.00010958,2]
[347371484,1735740640298,-523.68,0.00010958,2]
[347371485,1735740640307,-500.0,0.00010958,2]
[347371486,1735740640316,-5178.57,0.00010958,2]
[347371487,1735740640326,-3976.41,0.00010958,2]
[347371488,1735740640335,-1083.21,0.00010958,2]
[347371489,1735740640345,-500.0,0.00010958,2]
[347371490,1735740640354,-500.0,0.00010958,2]
[347371491,1735740640364,-500.0,0.00010958,2]
[347371492,1735740640373,-500.0,0.00010958,2]
[347371493,1735740640383,-500.0,0.00010958,2]
[347371494,1735740640392,-3045.98,0.00010958,2]
[347371495,1735740640401,-637.48,0.00010958,2]
[347371496,1735740640411,-500.71740549,0.00010958,2]
[347371497,1735740640421,-500.0,0.00010958,2]
[347371498,1735740640430,-500.0,0.00010958,2]
[347371499,1735740640440,-798.5,0.00010958,2]
[347371500,1735740640450,-1005.39,0.00010958,2]
[347371501,1735740640459,-500.0,0.00010958,2]
[347371502,1735740640469,-831.68,0.00010958,2]
[347371503,1735740640478,-500.0,0.00010958,2]
[347371504,1735740640488,-150.0,0.00010958,2]
[347371505,1735740640499,-500.0,0.00010958,2]
[347371506,1735740640508,-500.0,0.00010958,2]
[347371507,1735740640518,-573.26,0.00010958,2]
[347371508,1735740640527,-500.0,0.00010958,2]
[347371509,1735740640536,-692.2,0.00010958,2]
[347371510,1735740640546,-500.0,0.00010958,2]
[347371511,1735740640555,-500.0,0.00010958,2]
[347371512,1735740640565,-708.16,0.00010958,2]
[347371513,1735740640575,-1112.06,0.00010958,2]
[347371514,1735740640584,-500.0,0.00010958,2]
[347371515,1735740640593,-500.0,0.00010958,2]
[347371516,1735740640603,-1038.31,0.00010958,2]
[347371517,1735740640613,-3153.11,0.00010958,2]
[347371518,1735740640622,-1645.47,0.00010958,2]
[347371519,1735740640631,-872.32,0.00010958,2]
[347371520,1735740640640,-500.0,0.00010958,2]
[347371521,1735740640649,-500.0,0.00010958,2]
[347371522,1735740640659,-1704.88,0.00010958,2]
[347371523,1735740640670,-525.87,0.00010958,2]
[347371524,1735740640679,-500.0,0.00010958,2]
[347371525,1735740640688,-500.0,0.00010958,2]
[347371526,1735740640697,-4009.47,0.00010958,2]
[347371527,1735740640706,-500.0,0.00010958,2]
[347371528,1735740640715,-500.0,0.00010958,2]
[347371529,1735740640725,-3521.69,0.00010958,2]
[347371530,1735740640734,-691.04,0.00010958,2]
[347371531,1735740640745,-500.0,0.00010958,2]
[347371532,1735740640755,-670.51,0.00010958,2]
[347371533,1735740640764,-1120.31,0.00010958,2]
[347371534,1735740640773,-699.38,0.00010958,2]
[347371535,1735740640783,-500.0,0.00010958,2]
[347371536,1735740640792,-500.0,0.00010958,2]
[347371537,1735740640801,-500.0,0.00010958,2]
[347371538,1735740640811,-613.98,0.00010958,2]
[347371539,1735740640820,-1128.19,0.00010958,2]
[347371540,1735740640829,-1186.25,0.00010958,2]
[347371541,1735740640838,-522.86,0.00010958,2]
[347371542,1735740640847,-1278.27,0.00010958,2]
[347371544,1735740640856,-714.05,0.00010958,2]
[347371545,1735740640866,-500.0,0.00010958,2]
[347371546,1735740640875,-2061.81,0.00010958,2]
[347371547,1735740640884,-577.52,0.00010958,2]
[347371548,1735740640894,-500.0,0.00010958,2]
[347371549,1735740640903,-1005.33,0.00010958,2]
[347371550,1735740640913,-702.77,0.00010958,2]
[347371551,1735740640922,-500.0,0.00010958,2]
[347371552,1735740640931,-500.0,0.00010958,2]
[347371553,1735740640940,-629.28,0.00010958,2]
[347371554,1735740640949,-776.05,0.00010958,2]
[347371555,1735740640958,-2150.57,0.00010958,2]
[347371556,1735740640968,-500.0,0.00010958,2]
[347371557,1735740640977,-746.96,0.00010958,2]
[347371558,1735740640986,-1738.69,0.00010958,2]
[347371559,1735740640995,-9598.78,0.00010958,2]
[347371560,1735740641004,-500.0,0.00010958,2]
[347371561,1735740641013,-500.0,0.00010958,2]
[347371562,1735740641022,-1057.95,0.00010958,2]
[347371563,1735740641031,-1029.19,0.00010958,2]
[347371564,1735740641040,-622.8,0.00010958,2]
[347371565,1735740641050,-873.23,0.00010958,2]
[347371566,1735740641060,-1616.46,0.00010958,2]
[347371567,1735740641069,-500.0,0.00010958,2]
[347371568,1735740641080,-832.79,0.00010958,2]
[347371569,1735740641090,-1056.8,0.00010958,2]
[347371570,1735740641109,-1512.85,0.00010958,2]
[347371571,1735740641124,-1692.8,0.00010958,2]
[347371572,1735740641133,-2066.33,0.00010958,2]
[347371573,1735740641142,-500.0,0.00010958,2]
[347371574,1735740641151,-500.0,0.00010958,2]
[347371575,1735740641161,-543.15,0.00010958,2]
[347371576,1735740641170,-500.0,0.00010958,2]
[347371577,1735740641179,-1485.57,0.00010958,2]
[347371578,1735740641189,-621.12316191,0.00010958,2]
[347371579,1735740641198,-500.0,0.00010958,2]
[347371580,1735740641207,-545.38,0.00010958,2]
[347371581,1735740641216,-500.0,0.00010958,2]
[347371582,1735740641225,-1586.43,0.00010958,2]
[347371583,1735740641235,-500.0,0.00010958,2]
[347371584,1735740641245,-500.0,0.00010958,2]
[347371585,1735740641254,-2035.76,0.00010958,2]
[347371586,1735740641263,-580.14,0.00010958,2]
[347371587,1735740641272,-500.0,0.00010958,2]
[347371588,1735740641281,-1751.41,0.00010958,2]
[347371589,1735740641290,-500.0,0.00010958,2]
[347371590,1735740641299,-1048.39,0.00010958,2]
[347371591,1735740641308,-517.04,0.00010958,2]
[347371592,1735740641317,-927.27,0.00010958,2]
[347371593,1735740641326,-500.0,0.00010958,2]
[347371594,1735740641336,-500.0,0.00010958,2]
[347371595,1735740641345,-28450.35,0.00010958,2]
[347371596,1735740641354,-500.0,0.00010958,2]
[347371597,1735740641363,-530.89,0.00010958,2]
[347371598,1735740641372,-571.98,0.00010958,2]
[347371599,1735740641383,-1324.07,0.00010958,2]
[347371600,1735740641394,-500.0,0.00010958,2]
[347371601,1735740641404,-500.0,0.00010958,2]
[347371602,1735740641413,-839.75,0.00010958,2]
[347371603,1735740641422,-500.0,0.00010958,2]
[347371604,1735740641432,-500.0,0.00010958,2]
[347371605,1735740641441,-989.44,0.00010958,2]
[347371606,1735740641450,-651.98,0.00010958,2]
[347371607,1735740641460,-2302.86,0.00010958,2]
[347371608,1735740641469,-1016.24,0.00010958,2]
[347371609,1735740641479,-500.0,0.00010958,2]
[347371610,1735740641488,-592.57,0.00010958,2]
[347371611,1735740641499,-538.87,0.00010958,2]
[347371612,1735740641508,-2092.87,0.00010958,2]
[347371613,1735740641517,-500.0,0.00010958,2]
[347371614,1735740641527,-500.0,0.00010958,2]
[347371615,1735740641536,-730.2,0.00010958,2]
[347371616,1735740641545,-500.0,0.00010958,2]
[347371617,1735740641555,-606.92,0.00010958,2]
[347371618,1735740641564,-509.35,0.00010958,2]
[347371619,1735740641574,-500.0,0.00010958,2]
[347371620,1735740641583,-596.76,0.00010958,2]
[347371621,1735740641592,-638.84,0.00010958,2]
[347371622,1735740641601,-1122.2,0.00010958,2]
[347371623,1735740641611,-633.61,0.00010958,2]
[347371624,1735740641620,-1665.02,0.00010958,2]
[347371625,1735740641629,-500.0,0.00010958,2]
[347371626,1735740641638,-715.3,0.00010958,2]
[347371627,1735740641648,-583.92,0.00010958,2]
[347371628,1735740641658,-1175.43,0.00010958,2]
[347371629,1735740641668,-774.23,0.00010958,2]
[347371630,1735740641677,-1015.13,0.00010958,2]
[347371631,1735740641686,-500.0,0.00010958,2]
[347371632,1735740641696,-500.0,0.00010958,2]
[347371633,1735740641705,-500.0,0.00010958,2]
[347371634,1735740641714,-1731.15,0.00010958,2]
[347371635,1735740641724,-500.0,0.00010958,2]
[347371636,1735740641734,-1804.7,0.00010958,2]
[347371637,1735740641744,-500.0,0.00010958,2]
[347371638,1735740641753,-500.0,0.00010958,2]
[347371639,1735740641763,-500.0,0.00010958,2]
[347371640,1735740641772,-500.0,0.00010958,2]
[347371641,1735740641781,-2136.01,0.00010958,2]
[347371642,1735740641791,-849.79,0.00010958,2]
[347371644,1735740641800,-1182.48,0.00010958,2]
[347371645,1735740641809,-500.0,0.00010958,2]
[347371646,1735740641818,-500.0,0.00010958,2]
[347371647,1735740641828,-500.0,0.00010958,2]
[347371648,1735740641837,-500.0,0.00010958,2]
[347371649,1735740641847,-500.0,0.00010958,2]
[347371650,1735740641857,-500.0,0.00010958,2]
[347371651,1735740641867,-1618.74,0.00010958,2]
[347371652,1735740641878,-500.0,0.00010958,2]
[347371653,1735740641887,-500.0,0.00010958,2]
[347371654,1735740641897,-500.0,0.00010958,2]
[347371655,1735740641906,-1106.72,0.00010958,2]
[347371656,1735740641916,-565.27,0.00010958,2]
[347371657,1735740641926,-1165.01,0.00010958,2]
[347371658,1735740641936,-500.0,0.00010958,2]
[347371659,1735740641945,-513.39,0.00010958,2]
[347371660,1735740641954,-643.03,0.00010958,2]
[347371661,1735740641965,-500.0,0.00010958,2]
[347371662,1735740641974,-1082.44,0.00010958,2]
[347371663,1735740641983,-962.23,0.00010958,2]
[347371664,1735740641992,-774.79,0.00010958,2]
[347371665,1735740642003,-500.0,0.00010958,2]
[347371666,1735740642013,-500.0,0.00010958,2]
[347371667,1735740642022,-500.0,0.00010958,2]
[347371668,1735740642031,-1150.73,0.00010958,2]
[347371669,1735740642041,-542.98,0.00010958,2]
[347371670,1735740642050,-2763.22,0.00010958,2]
[347371671,1735740642061,-581.55,0.00010958,2]
[347371672,1735740642070,-2562.56,0.00010958,2]
[347371673,1735740642081,-2048.0,0.00010958,2]
[347371674,1735740642092,-1263.7,0.00010958,2]
[347371675,1735740642104,-500.0,0.00010958,2]
[347371676,1735740642114,-500.0,0.00010958,2]
[347371677,1735740642123,-1487.3,0.00010958,2]
[347371678,1735740642132,-2103.25,0.00010958,2]
[347371679,1735740642143,-500.0,0.00010958,2]
[347371680,1735740642152,-669.96,0.00010958,2]
[347371681,1735740642162,-772.67,0.00010958,2]
[347371682,1735740642173,-500.0,0.00010958,2]
[347371683,1735740642183,-4453.49,0.00010958,2]
[347371684,1735740642193,-1019.47,0.00010958,2]
[347371685,1735740642203,-960.71,0.00010958,2]
[347371686,1735740642211,-1237.16,0.00010958,2]
[347371687,1735740642221,-730.76,0.00010958,2]
[347371688,1735740642230,-1377.66,0.00010958,2]
[347371689,1735740642239,-500.0,0.00010958,2]
[347371690,1735740642249,-500.0,0.00010958,2]
[347371691,1735740642258,-2322.7,0.00010958,2]
[347371692,1735740642268,-1227.93,0.00010958,2]
[347371693,1735740642277,-1868.25,0.00010958,2]
[347371694,1735740642286,-1875.49,0.00010958,2]
[347371695,1735740642296,-500.0,0.00010958,2]
[347371696,1735740642305,-541.62,0.00010958,2]
[347371697,1735740642314,-500.0,0.00010958,2]